bitfinex/quotes_SOLUSD_20240718
["timestamp","ask_amount","ask_price","bid_price","bid_amount"]
[1721309133279,1.54676202,161.64,161.57,1.23763813]
[1721309133454,11.8,161.6,161.58,1.23756105]
[1721309133769,11.8,161.6,161.57,1.23757716]
[1721309134072,11.8,161.58,161.57,1.23764081]
[1721309134256,11.8,161.59,161.57,1.23764081]
[1721309134446,11.8,161.6,161.56,1.23767027]
[1721309137671,11.8,161.61,161.56,21.23767027]
[1721309138573,1.54704817,161.64,161.57,10.0]
[1721309138780,11.8,161.62,161.58,1.23747177]
[1721309138986,15.4058,161.65,161.58,1.23747177]
[1721309139286,11.8,161.63,161.58,1.23747177]
[1721309139990,11.8,161.63,161.58,13.03747177]
[1721309141364,11.8,161.64,161.58,13.03747177]
[1721309142061,13.34673614,161.64,161.58,13.03747177]
[1721309142778,11.8,161.64,161.58,13.03747177]
[1721309143900,11.8,161.64,161.59,45.0]
[1721309144193,11.8,161.64,161.6,1.23735137]
[1721309144360,11.8,161.64,161.61,1.23735137]
[1721309145474,11.8,161.64,161.6,1.23735505]
[1721309145758,11.8,161.64,161.61,1.2373519]
[1721309146367,11.8,161.65,161.61,1.2373519]
[1721309147293,11.8,161.65,161.61,46.2373519]
[1721309147993,1.54660122,161.68,161.61,58.0373519]
[1721309147994,11.8,161.66,161.61,58.0373519]
[1721309148297,11.8,161.66,161.61,68.0373519]
[1721309148471,11.8,161.67,161.62,11.8]
[1721309148673,13.34660122,161.68,161.63,1.23716167]
[1721309149090,1.54660122,161.68,161.63,1.23716167]
[1721309149267,11.8,161.68,161.63,1.23716167]
[1721309151977,11.8,161.67,161.63,1.23716167]
[1721309152401,11.8,161.66,161.63,1.23716167]
[1721309152703,11.8,161.66,161.64,1.23715519]
[1721309153573,11.8,161.66,161.63,1.23715405]
[1721309155438,11.8,161.65,161.62,21.237197]
[1721309155585,11.8,161.65,161.62,1.237197]
[1721309158429,1.71643336,161.69,161.62,46.237197]
[1721309158620,11.8,161.65,161.62,1.237197]
[1721309160500,11.8,161.66,161.62,1.237197]
[1721309160697,11.8,161.67,161.62,58.037197]
[1721309161025,1.54638558,161.71,161.64,11.8]
[1721309161228,1.54638558,161.71,161.65,13.03693257]
[1721309161229,11.8,161.7,161.65,13.03693257]
[1721309162828,11.8,161.7,161.65,1.23693257]
[1721309163005,11.8,161.7,161.65,66.23693257]
[1721309163199,11.8,161.69,161.65,66.23693257]
[1721309163405,11.8,161.69,161.65,21.23693257]
[1721309163713,11.8,161.68,161.65,21.23693257]
[1721309164308,11.8,161.69,161.65,21.23693257]
[1721309164708,1.5461486,161.72,161.66,45.0]
[1721309164933,11.8,161.7,161.67,1.23686111]
[1721309165106,11.8,161.7,161.68,1.23686069]
[1721309165431,11.8,161.69,161.67,1.23686256]
[1721309166241,11.8,161.71,161.68,1.23689731]
[1721309166920,11.8,161.7,161.68,1.23689731]
[1721309167111,11.8,161.7,161.67,1.2368636]
[1721309168125,11.8,161.7,161.66,1.23693066]
[1721309169320,1.5461486,161.72,161.66,46.23693066]
[1721309169631,11.8,161.7,161.66,46.23693066]
[1721309170213,1.5461486,161.72,161.66,46.23693066]
[1721309170417,11.8,161.71,161.66,46.23693066]
[1721309170615,11.8,161.7,161.67,1.23679963]
[1721309171432,11.8,161.7,161.66,1.23692464]
[1721309171829,1.54624795,161.72,161.67,1.23699836]
[1721309172135,11.8,161.7,161.66,1.23695946]
[1721309173027,13.51623138,161.71,161.66,1.23695946]
[1721309173433,13.51623138,161.71,161.66,46.23695946]
[1721309175340,11.97,161.71,161.66,46.23695946]
[1721309175640,0.8369586,161.74,161.68,10.0]
[1721309175841,0.8369586,161.74,161.69,58.03664571]
[1721309177219,12.6369586,161.74,161.69,58.03664571]
[1721309177718,12.6369586,161.74,161.69,46.23664571]
[1721309179022,11.8,161.73,161.69,46.23664571]
[1721309179224,0.8369586,161.74,161.69,46.23664571]
[1721309179527,11.8,161.73,161.69,46.23664571]
[1721309179739,0.8369586,161.74,161.69,58.03664571]
[1721309181442,2.38275667,161.74,161.69,58.03664571]
[1721309181646,11.8,161.7,161.64,15.9205]
[1721309181827,11.8,161.7,161.65,1.23673262]
[1721309182241,13.34626245,161.69,161.65,1.23673262]
[1721309182542,11.8,161.69,161.65,1.23673262]
[1721309183844,13.34633987,161.68,161.64,15.9205]
[1721309184742,13.34633987,161.68,161.65,1.23707417]
[1721309184945,13.34633987,161.68,161.65,45.0]
[1721309185531,0.8369586,161.74,161.66,43.03708058]
[1721309185732,0.8369586,161.74,161.68,10.0]
[1721309185940,0.8369586,161.74,161.67,16.3402]
[1721309185941,0.8369586,161.74,161.71,11.8]
[1721309186125,0.8369586,161.74,161.72,1.23647856]
[1721309188259,0.8369586,161.74,161.73,10.0]
[1721309188428,0.8369586,161.74,161.73,56.8]
[1721309188628,0.8369586,161.74,161.73,45.0]
[1721309192075,0.8369586,161.74,161.73,55.0]
[1721309192373,0.8369586,161.74,161.73,45.0]
[1721309192752,0.8369586,161.74,161.73,55.0]
[1721309193072,0.8369586,161.74,161.73,45.0]
[1721309193378,0.8369586,161.74,161.72,46.23647856]
[1721309193875,0.8369586,161.74,161.73,1.23647722]
[1721309194041,0.8369586,161.74,161.72,21.23647736]
[1721309194441,0.8369586,161.74,161.73,45.0]
[1721309195065,0.8369586,161.74,161.72,21.23647736]
[1721309195271,0.8369586,161.74,161.73,1.23650566]
[1721309195472,0.8369586,161.74,161.73,45.0]
[1721309195776,0.8369586,161.74,161.72,46.23647628]
[1721309196166,0.8369586,161.74,161.71,21.23648943]
[1721309196477,0.8369586,161.74,161.71,1.23648943]
[1721309197855,0.8369586,161.74,161.71,46.23648943]
[1721309200872,0.8369586,161.74,161.71,56.23648943]
[1721309202558,0.8369586,161.74,161.71,46.23648943]
[1721309202886,0.8369586,161.74,161.69,10.0]
[1721309202887,11.8,161.72,161.65,6.31681226]
[1721309203180,11.8,161.69,161.66,1.23693703]
[1721309203747,11.8,161.7,161.66,1.23693703]
[1721309204382,11.8,161.7,161.66,46.23693703]
[1721309204586,11.8,161.7,161.67,20.0]
[1721309204756,11.8,161.71,161.68,1.2368596]
[1721309204960,1.54610064,161.73,161.68,1.2368596]
[1721309205161,11.8,161.71,161.68,46.2368596]
[1721309205472,11.8,161.73,161.68,58.0368596]
[1721309205848,17.0916586,161.74,161.69,30.0]
[1721309205849,0.8369586,161.74,161.69,30.0]
[1721309206082,11.8,161.73,161.7,46.23651644]
[1721309206258,11.8,161.73,161.71,1.23655058]
[1721309206775,12.6369586,161.74,161.71,1.23655058]
[1721309207452,0.8369586,161.74,161.71,1.23655058]
[1721309208082,12.6369586,161.74,161.71,1.23655058]
[1721309209381,0.8369586,161.74,161.71,1.23655058]
[1721309210754,12.6369586,161.74,161.71,1.23655058]
[1721309211150,11.8,161.73,161.71,1.23655058]
[1721309211378,11.8,161.73,161.71,1.23664176]
[1721309211556,0.8369586,161.74,161.71,1.23666031]
[1721309211757,11.8,161.73,161.71,1.23666031]
[1721309212279,11.8,161.73,161.69,20.0]
[1721309212482,11.8,161.72,161.7,1.23672566]
[1721309212659,11.8,161.72,161.68,1.23672333]
[1721309213861,11.8,161.72,161.68,46.23672333]
[1721309214789,11.8,161.71,161.68,46.23672333]
[1721309215978,11.8,161.72,161.68,46.23672333]
[1721309216484,11.8,161.73,161.68,46.23672333]
[1721309216781,0.8369586,161.74,161.69,11.8]
[1721309216983,0.8369586,161.74,161.7,46.23652211]
[1721309217288,0.8369586,161.74,161.71,1.23652136]
[1721309219263,0.8369586,161.74,161.71,13.03652136]
[1721309219496,0.8369586,161.74,161.72,45.0]
[1721309219659,0.8369586,161.74,161.73,1.23638797]
[1721309228095,12.6369586,161.74,161.72,46.23646373]
[1721309228395,12.6369586,161.74,161.72,1.23646373]
[1721309229897,6.9149586,161.74,161.67,9.2231613]
[1721309230189,6.9149586,161.74,161.62,10.0]
[1721309230190,11.8,161.68,161.63,22.26015114]
[1721309230488,15.1897,161.72,161.66,21.8]
[1721309230489,11.8,161.71,161.66,21.8]
[1721309230670,16.73595316,161.72,161.67,13.03675769]
[1721309230671,26.9897,161.72,161.67,13.03675769]
[1721309230985,11.8,161.73,161.68,23.03675799]
[1721309231358,11.8,161.73,161.69,45.0]
[1721309231576,12.6369586,161.74,161.7,1.23664845]
[1721309231774,12.6369586,161.74,161.71,1.23664136]
[1721309232084,11.8,161.73,161.71,1.23664136]
[1721309232889,11.8,161.73,161.7,1.23662834]
[1721309233091,11.8,161.73,161.71,1.23662839]
[1721309233299,11.8,161.73,161.7,1.23662839]
[1721309233686,11.8,161.72,161.7,1.23662839]
[1721309234593,11.8,161.73,161.7,1.23662839]
[1721309235263,11.8,161.72,161.69,46.23667088]
[1721309236291,11.8,161.73,161.69,46.23667088]
[1721309236664,12.6369586,161.74,161.69,58.03667088]
[1721309237286,12.6369586,161.74,161.7,20.0]
[1721309237486,12.6369586,161.74,161.71,46.23655258]
[1721309238581,11.8,161.73,161.71,46.23655258]
[1721309238991,11.8,161.72,161.7,20.0]
[1721309239187,11.8,161.72,161.68,1.23670409]
[1721309239684,11.8,161.72,161.68,46.23670409]
[1721309239887,11.8,161.72,161.69,20.0]
[1721309240183,11.8,161.71,161.69,20.0]
[1721309240497,11.8,161.71,161.68,46.23670409]
[1721309240688,2.38293631,161.74,161.67,45.0]
[1721309240898,2.38293631,161.74,161.66,46.2368027]
[1721309240899,11.8,161.69,161.66,46.2368027]
[1721309241205,11.8,161.69,161.66,1.2368027]
[1721309241403,11.8,161.69,161.67,45.0]
[1721309241691,11.8,161.69,161.66,1.2368027]
[1721309241904,11.8,161.69,161.65,1.23694199]
[1721309242081,1.54624547,161.68,161.65,1.23694199]
[1721309242284,11.8,161.67,161.64,1.23699638]
[1721309242493,11.8,161.67,161.65,1.23708566]
[1721309242698,11.8,161.67,161.63,1.23708566]
[1721309243077,11.8,161.68,161.63,13.03708566]
[1721309243500,11.8,161.68,161.64,65.0]
[1721309243798,11.8,161.68,161.65,1.23702654]
[1721309244203,11.8,161.67,161.65,1.23702654]
[1721309244697,1.54628281,161.71,161.65,1.23702654]
[1721309244878,11.8,161.67,161.65,1.23702654]
[1721309246308,1.54632429,161.71,161.65,1.23702654]
[1721309246582,11.8,161.73,161.68,21.8]
[1721309246800,12.6369586,161.74,161.69,66.23662474]
[1721309246997,0.8369586,161.74,161.69,78.03662474]
[1721309247497,12.6369586,161.74,161.69,78.03662474]
[1721309248315,0.8369586,161.74,161.71,11.8]
[1721309248511,0.8369586,161.74,161.72,46.23646495]
[1721309249492,0.8369586,161.74,161.73,1.23646184]
[1721309250401,0.8369586,161.74,161.72,1.23646849]
[1721309250606,12.6369586,161.74,161.72,1.23646849]
[1721309251420,12.6369586,161.74,161.71,46.23655392]
[1721309251590,12.6369586,161.74,161.71,1.23655392]
[1721309251794,12.6369586,161.74,161.71,21.23655392]
[1721309253709,0.8369586,161.74,161.71,21.23655392]
[1721309263004,14.18267271,161.74,161.71,21.23655392]
[1721309263935,12.6369586,161.74,161.71,21.23655392]
[1721309264709,0.8369586,161.74,161.71,21.23655392]
[1721309267213,12.6369586,161.74,161.71,21.23655392]
[1721309268433,0.8369586,161.74,161.71,21.23655392]
[1721309269042,14.18266916,161.74,161.71,21.23655392]
[1721309269421,14.18266916,161.74,161.71,1.23655392]
[1721309270740,2.38266916,161.74,161.71,1.23655392]
[1721309270938,2.38274338,161.74,161.71,1.23655392]
[1721309271369,14.18274338,161.74,161.71,1.23655392]
[1721309271843,2.38274338,161.74,161.71,1.23655392]
[1721309272020,2.3827291,161.74,161.71,1.23655392]
[1721309272636,0.8369586,161.74,161.71,1.23655392]
[1721309277256,14.18271271,161.74,161.7,46.23660329]
[1721309277552,14.18271271,161.74,161.7,1.23660329]
[1721309277752,14.18271271,161.74,161.7,21.23660329]
[1721309280139,0.8369586,161.74,161.7,21.23660329]
[1721309280338,0.8369586,161.74,161.71,45.0]
[1721309280543,0.8369586,161.74,161.72,1.23656963]
[1721309280749,0.8369586,161.74,161.71,46.23657491]
[1721309281840,11.8,161.73,161.71,46.23657491]
[1721309282863,16.2054586,161.74,161.71,46.23657491]
[1721309283054,28.0054586,161.74,161.71,46.23657491]
[1721309291868,28.0054586,161.74,161.67,9.20992396]
[1721309291869,11.8,161.72,161.67,21.00992396]
[1721309292165,11.8,161.72,161.68,66.2367283]
[1721309293153,11.8,161.72,161.68,20.0]
[1721309293364,11.8,161.69,161.67,9.20992396]
[1721309294377,28.4349586,161.74,161.67,9.20992396]
[1721309294378,1.54632438,161.73,161.67,9.20992396]
[1721309294551,11.8,161.71,161.68,1.23689694]
[1721309294870,11.8,161.71,161.67,9.20992396]
[1721309295776,11.8,161.7,161.67,9.20992396]
[1721309296663,11.8,161.7,161.65,1.23689042]
[1721309296971,11.8,161.7,161.65,66.23689042]
[1721309297676,1.71624921,161.72,161.65,66.23689042]
[1721309297866,11.8,161.7,161.65,66.23689042]
[1721309298075,11.8,161.68,161.65,66.23689042]
[1721309299365,11.8,161.68,161.65,21.23689042]
[1721309299577,1.54633096,161.67,161.63,1.23706477]
[1721309299784,13.34633096,161.67,161.61,13.03722206]
[1721309300075,11.8,161.67,161.61,13.03722206]
[1721309300380,11.8,161.67,161.62,11.8]
[1721309300592,11.8,161.67,161.63,1.23710161]
[1721309300958,1.54652627,161.71,161.63,1.23710161]
[1721309301264,22.2521586,161.74,161.63,33.03710161]
[1721309301265,11.8,161.68,161.63,33.03710161]
[1721309301464,11.8,161.68,161.63,78.03710161]
[1721309302487,1.71637284,161.7,161.63,78.03710161]
[1721309302656,11.8,161.68,161.63,78.03710161]
[1721309302984,11.8,161.69,161.63,78.03710161]
[1721309304082,1.54626156,161.68,161.63,78.03710161]
[1721309304259,13.34626156,161.68,161.63,78.03710161]
[1721309304576,1.54638521,161.71,161.63,66.23710161]
[1721309304782,11.8,161.68,161.63,66.23710161]
[1721309305594,11.3,161.68,161.63,66.23710161]
[1721309305895,11.3,161.68,161.63,78.03710161]
[1721309306794,11.3,161.68,161.63,66.23710161]
[1721309307870,1.54638598,161.67,161.63,66.23710161]
[1721309308175,13.34638598,161.67,161.63,66.23710161]
[1721309308588,1.54638598,161.67,161.63,66.23710161]
[1721309308804,11.8,161.67,161.63,66.23710161]
[1721309309098,13.34649665,161.66,161.63,45.0]
[1721309309283,13.34649665,161.66,161.62,1.23719732]
[1721309309480,11.8,161.65,161.62,1.23719732]
[1721309310476,11.8,161.65,161.6,8.07826365]
[1721309310477,13.34674267,161.64,161.58,10.0]
[1721309310676,13.34674267,161.64,161.59,1.23745661]
[1721309311785,11.8,161.64,161.59,66.23745661]
[1721309311978,11.8,161.65,161.59,78.03745661]
[1721309313089,11.8,161.64,161.59,78.03745661]
[1721309313293,11.8,161.64,161.6,1.23740042]
[1721309313488,1.5468171,161.63,161.6,1.23740042]
[1721309314405,1.5468171,161.63,161.59,20.0]
[1721309314605,13.3468171,161.63,161.59,20.0]
[1721309314999,13.3468171,161.63,161.58,21.23746312]
[1721309315199,13.3468171,161.63,161.58,33.03746312]
[1721309315805,11.8,161.63,161.59,45.0]
[1721309316102,11.8,161.63,161.6,21.23746858]
[1721309316305,11.8,161.64,161.6,21.23746858]
[1721309316778,1.54680965,161.63,161.6,21.23746858]
[1721309317206,1.54680965,161.63,161.6,20.0]
[1721309317512,11.8,161.62,161.6,20.0]
[1721309317688,1.54704025,161.61,161.58,21.2376322]
[1721309318509,11.8,161.62,161.58,21.2376322]
[1721309318813,11.8,161.63,161.58,21.2376322]
[1721309318995,1.54703702,161.62,161.58,21.2376322]
[1721309319608,1.54703702,161.62,161.59,20.0]
[1721309319800,11.8,161.61,161.57,21.23764869]
[1721309320112,11.8,161.62,161.58,1.23764841]
[1721309320316,1.54705535,161.61,161.58,1.23764841]
[1721309320516,13.34705535,161.61,161.57,21.23765138]
[1721309321815,1.54707591,161.6,161.57,21.23765138]
[1721309322917,1.54711631,161.6,161.57,21.23765138]
[1721309323120,13.34711631,161.61,161.57,21.23765138]
[1721309324601,13.34711631,161.61,161.58,1.23766824]
[1721309324810,11.8,161.61,161.58,1.23766824]
[1721309325119,13.34705621,161.61,161.58,1.23766824]
[1721309325325,13.34705898,161.6,161.57,20.0]
[1721309325498,13.34705898,161.6,161.56,1.23764718]
[1721309325902,11.8,161.59,161.55,46.23780574]
[1721309326232,13.34727017,161.58,161.54,1.23781613]
[1721309326896,13.34727017,161.58,161.54,21.23781613]
[1721309327103,13.34727017,161.58,161.55,20.0]
[1721309327312,13.34727017,161.58,161.54,1.23781613]
[1721309328797,11.8,161.57,161.53,46.23795238]
[1721309330025,11.8,161.57,161.54,20.0]
[1721309332993,1.54744058,161.61,161.55,1.2379524]
[1721309333195,0.17,161.6,161.55,1.2379524]
[1721309333422,11.97,161.6,161.55,1.2379524]
[1721309333603,11.8,161.6,161.55,1.2379524]
[1721309333804,11.8,161.6,161.55,58.0379524]
[1721309334909,1.54720835,161.59,161.55,58.0379524]
[1721309335106,1.54720835,161.59,161.55,46.2379524]
[1721309335624,11.8,161.6,161.55,46.2379524]
[1721309336142,1.54721336,161.59,161.55,46.2379524]
[1721309337235,13.34721336,161.59,161.55,46.2379524]
[1721309337646,13.34721336,161.59,161.55,1.2379524]
[1721309337647,11.8,161.58,161.55,1.2379524]
[1721309338142,11.8,161.58,161.54,46.23787679]
[1721309338342,11.8,161.58,161.55,21.23787679]
[1721309339145,1.54734586,161.61,161.55,21.23787679]
[1721309339321,11.8,161.59,161.55,21.23787679]
[1721309339520,1.5473444,161.58,161.55,21.23787679]
[1721309340253,13.3473444,161.58,161.55,21.23787679]
[1721309341563,11.8,161.57,161.55,20.0]
[1721309341735,11.8,161.57,161.53,20.0]
[1721309341935,11.8,161.58,161.54,1.23795293]
[1721309342237,11.8,161.59,161.54,46.23795293]
[1721309342559,11.8,161.59,161.55,20.0]
[1721309342863,11.8,161.59,161.55,21.23779914]
[1721309343856,13.34727293,161.58,161.55,20.0]
[1721309344838,13.34727293,161.58,161.53,21.23795216]
[1721309346354,1.54727293,161.58,161.54,45.0]
[1721309346548,11.8,161.59,161.55,20.0]
[1721309346742,1.54735899,161.58,161.55,20.0]
[1721309347333,13.34735899,161.58,161.55,20.0]
[1721309349364,13.34735899,161.58,161.55,19.5]
[1721309351672,1.54735899,161.58,161.55,19.5]
[1721309351838,1.54736802,161.58,161.55,19.5]
[1721309353650,13.34736802,161.58,161.55,19.5]
[1721309354947,13.34736802,161.58,161.53,21.23794878]
[1721309355253,13.34736802,161.58,161.53,33.03794878]
[1721309356565,13.34736802,161.58,161.53,21.23794878]
[1721309356767,13.34736802,161.58,161.53,33.03794878]
[1721309357665,13.34736802,161.58,161.53,21.23794878]
[1721309357866,13.34736802,161.58,161.53,33.03794878]
[1721309358650,1.54736802,161.58,161.53,33.03794878]
[1721309358850,1.54743317,161.61,161.53,33.03794878]
[1721309359053,11.8,161.58,161.53,33.03794878]
[1721309359254,1.54743451,161.57,161.53,33.03794878]
[1721309359455,1.54743451,161.57,161.53,21.23794878]
[1721309359671,1.54743451,161.57,161.53,31.8]
[1721309359849,1.54743451,161.57,161.54,1.23794749]
[1721309361851,1.54743451,161.57,161.53,20.0]
[1721309362064,13.34743451,161.57,161.53,20.0]
[1721309362366,11.8,161.57,161.52,21.23801577]
[1721309363349,11.8,161.56,161.52,20.0]
[1721309363550,1.5476737,161.55,161.51,1.23800772]
[1721309363767,11.8,161.54,161.5,1.23815273]
[1721309363957,1.54778843,161.53,161.49,1.2382262]
[1721309364256,1.54778843,161.53,161.48,17.28212278]
[1721309364257,11.8,161.51,161.48,17.28212278]
[1721309364577,11.8,161.51,161.47,1.23826765]
[1721309365555,13.348068,161.52,161.47,1.23826765]
[1721309365848,13.348068,161.52,161.47,21.23826765]
[1721309366743,15.6931,161.53,161.47,33.03826765]
[1721309366975,11.8,161.52,161.48,45.0]
[1721309367167,27.4931,161.53,161.49,21.23828875]
[1721309367961,1.54786327,161.52,161.49,21.23828875]
[1721309368368,27.4931,161.53,161.49,21.23828875]
[1721309369270,15.6931,161.53,161.49,21.23828875]
[1721309369580,27.4931,161.53,161.49,21.23828875]
[1721309369755,1.54786551,161.52,161.49,21.23828875]
[1721309370461,13.34786409,161.52,161.49,21.23828875]
[1721309371253,1.54786409,161.52,161.49,20.0]
[1721309371484,11.8,161.51,161.45,21.23829223]
[1721309371675,11.8,161.51,161.46,48.47533652]
[1721309371874,11.8,161.51,161.47,20.0]
[1721309373778,1.54806522,161.5,161.47,20.0]
[1721309373960,11.8,161.51,161.47,20.0]
[1721309374484,13.34810255,161.51,161.47,20.0]
[1721309375570,11.8,161.51,161.47,20.0]
[1721309376457,1.54806245,161.5,161.47,20.0]
[1721309377192,11.8,161.49,161.47,20.0]
[1721309377759,11.8,161.5,161.47,20.0]
[1721309380668,11.8,161.51,161.47,20.0]
[1721309380870,1.54810046,161.5,161.47,20.0]
[1721309381373,11.8,161.51,161.47,20.0]
[1721309381776,1.54810009,161.5,161.47,20.0]
[1721309382689,13.34810009,161.5,161.47,20.0]
[1721309383080,1.54810009,161.5,161.47,20.0]
[1721309383283,13.34809902,161.52,161.47,20.0]
[1721309383682,13.34809902,161.52,161.47,31.8]
[1721309384092,1.54809902,161.52,161.48,1.23847869]
[1721309384293,1.54809836,161.56,161.51,11.8]
[1721309384495,21.7094,161.61,161.54,11.8]
[1721309384699,21.7094,161.61,161.52,43.03811633]
[1721309385005,26.9513,161.65,161.6,11.8]
[1721309385171,15.1513,161.65,161.6,11.8]
[1721309385897,1.54682281,161.64,161.6,11.8]
[1721309386395,1.54682281,161.64,161.59,11.8]
[1721309386570,1.54682281,161.64,161.6,45.0]
[1721309386772,1.54682281,161.64,161.6,46.23745942]
[1721309387370,1.54682281,161.64,161.6,58.03745942]
[1721309387595,1.54682281,161.64,161.6,56.8]
[1721309388009,1.54682281,161.64,161.56,1.23745927]
[1721309388298,1.54682281,161.64,161.58,11.8]
[1721309388299,11.97,161.63,161.58,11.8]
[1721309388484,1.5470824,161.62,161.57,11.8]
[1721309388683,11.8,161.61,161.55,56.8]
[1721309388882,1.54721394,161.6,161.54,11.8]
[1721309389100,1.54721394,161.6,161.53,11.8]
[1721309389101,11.8,161.59,161.53,11.8]
[1721309389397,1.54730156,161.58,161.53,11.8]
[1721309389697,1.54730156,161.58,161.54,13.03784125]
[1721309389903,1.54730156,161.58,161.54,11.8]
[1721309390586,1.54730164,161.59,161.55,11.8]
[1721309393406,1.54741944,161.57,161.54,20.0]
[1721309395785,1.54741944,161.57,161.54,21.23798575]
[1721309396109,1.54742681,161.58,161.54,21.23798575]
[1721309396810,13.34742681,161.58,161.54,21.23798575]
[1721309397029,1.5474388,161.57,161.54,21.23798575]
[1721309397308,1.5474388,161.57,161.54,20.0]
[1721309398310,13.3474388,161.57,161.52,11.8]
[1721309398508,1.54747279,161.56,161.53,65.0]
[1721309398695,1.54747244,161.57,161.53,65.0]
[1721309399398,1.54747244,161.57,161.53,78.03797774]
[1721309400095,1.54746917,161.58,161.53,78.03797774]
[1721309400294,1.54746903,161.59,161.55,11.8]
[1721309400501,1.54746903,161.59,161.54,1.23797522]
[1721309400713,1.54746903,161.59,161.54,13.03797522]
[1721309401010,1.54746903,161.59,161.55,13.03793081]
[1721309402020,1.54746903,161.59,161.53,66.2377614]
[1721309402307,13.34746903,161.59,161.54,11.8]
[1721309402483,13.34746903,161.59,161.53,66.2377614]
[1721309402484,11.8,161.58,161.53,11.8]
[1721309402688,13.34764809,161.57,161.51,11.8]
[1721309402902,13.34764809,161.57,161.52,1.23811565]
[1721309403102,13.34764809,161.57,161.52,11.8]
[1721309403401,13.34764809,161.57,161.5,11.8]
[1721309403402,1.54764809,161.57,161.5,11.8]
[1721309403621,11.8,161.55,161.5,11.8]
[1721309403925,1.54781577,161.54,161.5,11.8]
[1721309404630,13.34781577,161.54,161.48,11.8]
[1721309404841,13.34781577,161.54,161.47,8.06035777]
[1721309404842,11.8,161.54,161.49,11.8]
[1721309405051,11.8,161.54,161.5,20.0]
[1721309405411,11.8,161.54,161.49,20.0]
[1721309405616,0.17,161.56,161.49,20.0]
[1721309405940,11.8,161.52,161.46,11.8]
[1721309406106,1.54809574,161.51,161.46,11.8]
[1721309406306,11.8,161.5,161.45,2.23702332]
[1721309406555,1.71838927,161.49,161.47,2.28546117]
[1721309406718,1.5483805,161.48,161.44,11.8]
[1721309406930,1.5483805,161.48,161.45,2.23702812]
[1721309407829,1.54834191,161.49,161.46,2.0133253]
[1721309408129,1.54834191,161.48,161.44,11.8]
[1721309408303,1.54834191,161.49,161.47,1.81199277]
[1721309408504,13.34834191,161.49,161.44,11.8]
[1721309408741,1.54834184,161.48,161.45,2.23702812]
[1721309409809,1.54834184,161.48,161.44,66.23867341]
[1721309410016,13.34834184,161.48,161.44,67.23716188]
[1721309410375,1.54834174,161.47,161.44,2.23716188]
[1721309410533,0.17,161.5,161.45,2.06767303]
[1721309410534,13.34847617,161.46,161.45,2.06767303]
[1721309410740,11.8,161.47,161.43,0.0602526]
[1721309410969,11.8,161.47,161.44,1.77082818]
[1721309411263,1.54852149,161.5,161.45,13.03881719]
[1721309411464,16.4061,161.51,161.47,11.8]
[1721309411665,1.54820194,161.59,161.47,1.23842425]
[1721309411666,11.8,161.54,161.47,1.23842425]
[1721309411833,1.54780872,161.55,161.5,11.8]
[1721309412036,1.54780872,161.55,161.51,11.8]
[1721309412245,1.54765499,161.55,161.52,11.8]
[1721309412443,17.62188365,161.56,161.53,11.8]
[1721309412648,17.62188365,161.56,161.52,11.8]
[1721309414080,28.2516,161.61,161.55,11.8]
[1721309414240,1.54731437,161.6,161.54,1.23785149]
[1721309414440,1.54731437,161.6,161.55,1.23785053]
[1721309414634,1.54731437,161.6,161.54,45.0]
[1721309414831,1.54731437,161.6,161.53,20.0]
[1721309415069,1.54731437,161.6,161.52,1.23786957]
[1721309415233,1.54731437,161.6,161.52,45.0]
[1721309415459,7.73541437,161.6,161.51,20.0]
[1721309415671,6.3585,161.59,161.49,1.23793734]
[1721309415875,1.54772827,161.58,161.49,1.23793734]
[1721309416073,1.7177282,161.57,161.49,1.23793734]
[1721309416381,0.17,161.57,161.49,46.23793734]
[1721309416798,1.54762051,161.59,161.49,46.23793734]
[1721309417088,0.17,161.58,161.5,20.0]
[1721309417264,0.17,161.58,161.51,46.23815013]
[1721309417459,0.17,161.58,161.51,45.0]
[1721309417763,1.5477206,161.57,161.45,1.23817648]